[Event "Titled Tuesday Blitz March 07 Early 2023"]
[White "Mohammed, Dilshad"]
[Black "Kowalczyk, Pawel"]
[WhiteFideId "5050421"]
[BlackFideId "1130641"]
[WhiteElo "2112"]
[BlackElo "2324"]
[Result "0-1"]
[Round "04"]
[TimeControl "180+2"]
[Date "2023.03.07"]
[WhiteClock "0:00:32"]
[BlackClock "0:00:56"]

1. Nf3 {[%clk 0:02:59]}  Nf6 {[%clk 0:02:58]} 2. c4 {[%clk 0:02:59]}  g6 {[%clk 0:02:58]} 3. Nc3 {[%clk 0:02:59]}  Bg7 {[%clk 0:02:58]} 4. e4 {[%clk 0:02:59]}  d6 {[%clk 0:02:59]} 5. d4 {[%clk 0:03:00]}  O-O {[%clk 0:03:00]} 6. Be2 {[%clk 0:03:00]}  e5 {[%clk 0:03:00]} 7. O-O {[%clk 0:03:01]}  exd4 {[%clk 0:03:00]} 8. Nxd4 {[%clk 0:03:01]}  Nc6 {[%clk 0:03:01]} 9. Nxc6 {[%clk 0:03:01]}  bxc6 {[%clk 0:03:01]} 10. Bf3 {[%clk 0:03:00]}  Nd7 {[%clk 0:03:01]} 11. Bf4 {[%clk 0:02:59]}  Rb8 {[%clk 0:03:00]} 12. Rb1 {[%clk 0:02:58]}  Re8 {[%clk 0:02:58]} 13. Qd2 {[%clk 0:02:54]}  Nc5 {[%clk 0:02:55]} 14. Rfe1 {[%clk 0:02:52]}  Ne6 {[%clk 0:02:55]} 15. Be3 {[%clk 0:02:52]}  c5 {[%clk 0:02:55]} 16. b3 {[%clk 0:02:51]}  Nd4 {[%clk 0:02:54]} 17. Bxd4 {[%clk 0:02:51]}  cxd4 {[%clk 0:02:55]} 18. Ne2 {[%clk 0:02:49]}  c5 {[%clk 0:02:52]} 19. b4 {[%clk 0:02:49]}  Be6 {[%clk 0:02:50]} 20. Rec1 {[%clk 0:02:39]}  Qh4 {[%clk 0:02:43]} 21. g3 {[%clk 0:02:38]}  Bh6 {[%clk 0:02:37]} 22. Qd3 {[%clk 0:02:17]}  Qf6 {[%clk 0:02:30]} 23. Rd1 {[%clk 0:02:15]}  Rb6 {[%clk 0:02:23]} 24. bxc5 {[%clk 0:02:13]}  dxc5 {[%clk 0:02:23]} 25. Rxb6 {[%clk 0:02:13]}  axb6 {[%clk 0:02:24]} 26. Bg2 {[%clk 0:02:11]}  Qd8 {[%clk 0:02:16]} 27. f4 {[%clk 0:02:08]}  Qa8 {[%clk 0:02:16]} 28. f5 {[%clk 0:02:00]}  Bd7 {[%clk 0:02:10]} 29. e5 {[%clk 0:01:58]}  Qxa2 {[%clk 0:02:07]} 30. e6 {[%clk 0:01:58]}  Ba4 {[%clk 0:01:57]} 31. exf7+ {[%clk 0:01:53]}  Kxf7 {[%clk 0:01:58]} 32. fxg6+ {[%clk 0:01:54]}  hxg6 {[%clk 0:01:56]} 33. Bd5+ {[%clk 0:01:52]}  Kg7 {[%clk 0:01:55]} 34. Rf1 {[%clk 0:01:43]}  Bc2 {[%clk 0:01:31]} 35. Rf7+ {[%clk 0:01:22]}  Kh8 {[%clk 0:01:31]} 36. Qf3 {[%clk 0:01:15]}  Bf5 {[%clk 0:01:12]} 37. Rxf5 {[%clk 0:01:02]}  Qb1+ {[%clk 0:01:11]} 38. Kg2 {[%clk 0:00:52]}  Qxf5 {[%clk 0:01:12]} 39. Nf4 {[%clk 0:00:34]}  Bxf4 {[%clk 0:01:00]} 40. gxf4 {[%clk 0:00:35]}  Re3 {[%clk 0:01:00]} 41. Qf2 {[%clk 0:00:33]}  Qg4+ {[%clk 0:00:58]} 42. Kf1 {[%clk 0:00:32]}  Qd1+ {[%clk 0:00:56]} 43. Kg2 {[%clk 0:00:32]}  Re2 {[%clk 0:00:56]} 0-1


[Site "https://www.chess.com"]

[Event "Titled Tuesday Blitz March 07 Early 2023"]
[White "Matinian, Nikita"]
[Black "Abdilkhair, Abilmansur"]
[WhiteFideId "24129100"]
[BlackFideId "13716417"]
[WhiteElo "2422"]
[BlackElo "2216"]
[Result "1-0"]
[Round "04"]
[TimeControl "180+2"]
[Date "2023.03.07"]
[WhiteClock "0:00:51"]
[BlackClock "0:00:04"]

1. d4 {[%clk 0:03:00]}  Nf6 {[%clk 0:03:00]} 2. Nf3 {[%clk 0:03:01]}  e6 {[%clk 0:03:00]} 3. Bf4 {[%clk 0:02:56]}  Be7 {[%clk 0:02:52]} 4. Nbd2 {[%clk 0:02:55]}  O-O {[%clk 0:02:52]} 5. e4 {[%clk 0:02:55]}  d5 {[%clk 0:02:52]} 6. e5 {[%clk 0:02:55]}  Nfd7 {[%clk 0:02:52]} 7. c3 {[%clk 0:02:53]}  c5 {[%clk 0:02:52]} 8. h4 {[%clk 0:02:53]}  cxd4 {[%clk 0:02:50]} 9. Nxd4 {[%clk 0:02:50]}  Nc6 {[%clk 0:02:48]} 10. Nxc6 {[%clk 0:02:50]}  bxc6 {[%clk 0:02:49]} 11. h5 {[%clk 0:02:51]}  h6 {[%clk 0:02:47]} 12. Qg4 {[%clk 0:02:50]}  f5 {[%clk 0:02:33]} 13. Qg6 {[%clk 0:02:43]}  Rf7 {[%clk 0:02:12]} 14. Qxe6 {[%clk 0:02:34]}  Qb6 {[%clk 0:01:53]} 15. Qg6 {[%clk 0:02:10]}  Nf8 {[%clk 0:01:37]} 16. Qg3 {[%clk 0:02:10]}  Qxb2 {[%clk 0:01:36]} 17. Rb1 {[%clk 0:02:11]}  Qxa2 {[%clk 0:01:36]} 18. Bd3 {[%clk 0:01:59]}  Ba6 {[%clk 0:01:32]} 19. O-O {[%clk 0:01:57]}  Bxd3 {[%clk 0:01:29]} 20. Qxd3 {[%clk 0:01:58]}  Ne6 {[%clk 0:01:30]} 21. g3 {[%clk 0:01:55]}  Qa3 {[%clk 0:00:44]} 22. Rb3 {[%clk 0:01:48]}  Qc5 {[%clk 0:00:43]} 23. Rfb1 {[%clk 0:01:47]}  Re8 {[%clk 0:00:20]} 24. Rb4 {[%clk 0:01:29]}  Qa5 {[%clk 0:00:19]} 25. Nb3 {[%clk 0:01:21]}  Qd8 {[%clk 0:00:16]} 26. Ra4 {[%clk 0:01:19]}  Nc5 {[%clk 0:00:16]} 27. Nxc5 {[%clk 0:01:19]}  Bxc5 {[%clk 0:00:17]} 28. e6 {[%clk 0:01:17]}  Rxe6 {[%clk 0:00:16]} 29. Rb8 {[%clk 0:01:16]}  Qxb8 {[%clk 0:00:10]} 30. Bxb8 {[%clk 0:01:15]}  Rb7 {[%clk 0:00:11]} 31. Bf4 {[%clk 0:01:12]}  Rb2 {[%clk 0:00:10]} 32. Rd4 {[%clk 0:01:00]}  Bxd4 {[%clk 0:00:08]} 33. cxd4 {[%clk 0:01:01]}  Re4 {[%clk 0:00:08]} 34. Be3 {[%clk 0:01:00]}  a5 {[%clk 0:00:07]} 35. Qa6 {[%clk 0:01:00]}  Rc2 {[%clk 0:00:04]} 36. Qc8+ {[%clk 0:00:59]}  Kh7 {[%clk 0:00:04]} 37. Qxf5+ {[%clk 0:00:59]}  Kg8 {[%clk 0:00:05]} 38. Qg6 {[%clk 0:00:54]}  a4 {[%clk 0:00:05]} 39. Bxh6 {[%clk 0:00:53]}  Re7 {[%clk 0:00:02]} 40. Qxc2 {[%clk 0:00:52]}  gxh6 {[%clk 0:00:01]} 41. Qxa4 {[%clk 0:00:52]}  Re6 {[%clk 0:00:02]} 42. Qa7 {[%clk 0:00:51]}  Rf6 {[%clk 0:00:02]} 43. Qe7 {[%clk 0:00:51]}  Rf7 {[%clk 0:00:02]} 44. Qe6 {[%clk 0:00:51]}  Kg7 {[%clk 0:00:03]} 45. Qg6+ {[%clk 0:00:51]}  Kf8 {[%clk 0:00:03]} 46. Qxh6+ {[%clk 0:00:51]}  Ke7 {[%clk 0:00:03]} 47. Qxc6 {[%clk 0:00:52]}  Rf6 {[%clk 0:00:04]} 48. Qxd5 {[%clk 0:00:51]} 1-0


[Site "https://www.chess.com"]

[Event "Titled Tuesday Blitz March 07 Early 2023"]
[White "Skliarov, Viktor"]
[Black "Pourkashiyan, Atousa"]
[WhiteFideId "14106736"]
[BlackFideId "12502014"]
[WhiteElo "2289"]
[BlackElo "2228"]
[Result "0-1"]
[Round "04"]
[TimeControl "180+2"]
[Date "2023.03.07"]
[WhiteClock "0:00:02"]
[BlackClock "0:00:08"]

1. e4 {[%clk 0:03:00]}  c5 {[%clk 0:02:58]} 2. Nf3 {[%clk 0:03:00]}  e6 {[%clk 0:02:58]} 3. c3 {[%clk 0:02:59]}  Nf6 {[%clk 0:02:58]} 4. Bd3 {[%clk 0:02:58]}  d5 {[%clk 0:02:56]} 5. e5 {[%clk 0:02:57]}  Nfd7 {[%clk 0:02:57]} 6. Bc2 {[%clk 0:02:56]}  d4 {[%clk 0:02:51]} 7. d3 {[%clk 0:02:52]}  Nc6 {[%clk 0:02:51]} 8. Bf4 {[%clk 0:02:52]}  Be7 {[%clk 0:02:51]} 9. O-O {[%clk 0:02:51]}  O-O {[%clk 0:02:51]} 10. Nbd2 {[%clk 0:02:51]}  Qc7 {[%clk 0:02:41]} 11. Re1 {[%clk 0:02:45]}  b6 {[%clk 0:02:40]} 12. Bg3 {[%clk 0:02:42]}  Bb7 {[%clk 0:02:40]} 13. cxd4 {[%clk 0:02:29]}  cxd4 {[%clk 0:02:38]} 14. Rc1 {[%clk 0:02:29]}  Nc5 {[%clk 0:02:30]} 15. a3 {[%clk 0:02:28]}  a5 {[%clk 0:02:30]} 16. Ne4 {[%clk 0:02:27]}  Rac8 {[%clk 0:02:05]} 17. Nd6 {[%clk 0:01:45]}  Bxd6 {[%clk 0:01:57]} 18. exd6 {[%clk 0:01:46]}  Qd7 {[%clk 0:01:58]} 19. Ne5 {[%clk 0:01:24]}  Nxe5 {[%clk 0:01:54]} 20. Bxe5 {[%clk 0:01:25]}  f6 {[%clk 0:01:55]} 21. Bxd4 {[%clk 0:01:17]}  Qxd6 {[%clk 0:01:55]} 22. Be3 {[%clk 0:01:12]}  Qd5 {[%clk 0:01:39]} 23. f3 {[%clk 0:01:05]}  Rfd8 {[%clk 0:01:30]} 24. d4 {[%clk 0:01:03]}  Qh5 {[%clk 0:01:11]} 25. Qd2 {[%clk 0:00:40]}  e5 {[%clk 0:01:07]} 26. Qf2 {[%clk 0:00:09]}  exd4 {[%clk 0:00:59]} 27. Bxd4 {[%clk 0:00:09]}  Kh8 {[%clk 0:01:00]} 28. b4 {[%clk 0:00:09]}  axb4 {[%clk 0:00:41]} 29. axb4 {[%clk 0:00:10]}  Nd7 {[%clk 0:00:41]} 30. Ba4 {[%clk 0:00:09]}  b5 {[%clk 0:00:38]} 31. Bb3 {[%clk 0:00:08]}  Ne5 {[%clk 0:00:26]} 32. Bxe5 {[%clk 0:00:08]}  fxe5 {[%clk 0:00:25]} 33. Be6 {[%clk 0:00:08]}  Rxc1 {[%clk 0:00:18]} 34. Rxc1 {[%clk 0:00:09]}  Qh6 {[%clk 0:00:17]} 35. Rc7 {[%clk 0:00:02]}  Rd1+ {[%clk 0:00:07]} 36. Qf1 {[%clk 0:00:02]}  Qe3+ {[%clk 0:00:07]} 37. Kh1 {[%clk 0:00:02]}  Rxf1# {[%clk 0:00:08]} 0-1


[Site "https://www.chess.com"]

[Event "Titled Tuesday Blitz March 07 Early 2023"]
[White "Stepanencu, Nicodim-Cosmin"]
[Black "Oro, Faustino"]
[WhiteFideId "1256220"]
[BlackFideId "20000197"]
[WhiteElo "2185"]
[BlackElo "1984"]
[Result "0-1"]
[Round "04"]
[TimeControl "180+2"]
[Date "2023.03.07"]
[WhiteClock "0:00:06"]
[BlackClock "0:00:06"]

1. b3 {[%clk 0:03:00]}  Nf6 {[%clk 0:02:58]} 2. Bb2 {[%clk 0:03:01]}  g6 {[%clk 0:02:56]} 3. Nf3 {[%clk 0:03:02]}  Bg7 {[%clk 0:02:56]} 4. g3 {[%clk 0:03:03]}  O-O {[%clk 0:02:56]} 5. Bg2 {[%clk 0:03:04]}  b6 {[%clk 0:02:57]} 6. Ne5 {[%clk 0:03:02]}  c6 {[%clk 0:02:52]} 7. O-O {[%clk 0:03:00]}  Bb7 {[%clk 0:02:51]} 8. d4 {[%clk 0:03:01]}  d5 {[%clk 0:02:46]} 9. c4 {[%clk 0:03:00]}  Nbd7 {[%clk 0:02:36]} 10. Nc3 {[%clk 0:03:00]}  e6 {[%clk 0:02:27]} 11. f4 {[%clk 0:02:54]}  Nxe5 {[%clk 0:02:06]} 12. fxe5 {[%clk 0:02:51]}  Ng4 {[%clk 0:02:02]} 13. Qd3 {[%clk 0:02:37]}  c5 {[%clk 0:01:47]} 14. cxd5 {[%clk 0:02:00]}  cxd4 {[%clk 0:01:36]} 15. Qxd4 {[%clk 0:01:55]}  Nxe5 {[%clk 0:01:36]} 16. Kh1 {[%clk 0:01:48]}  Rc8 {[%clk 0:01:25]} 17. Qa4 {[%clk 0:01:28]}  exd5 {[%clk 0:01:14]} 18. Rad1 {[%clk 0:01:10]}  Bc6 {[%clk 0:01:05]} 19. Qf4 {[%clk 0:01:03]}  d4 {[%clk 0:00:46]} 20. Ne4 {[%clk 0:01:01]}  f5 {[%clk 0:00:34]} 21. Rxd4 {[%clk 0:00:58]}  Qe7 {[%clk 0:00:34]} 22. Nd6 {[%clk 0:00:56]}  Bxg2+ {[%clk 0:00:33]} 23. Kxg2 {[%clk 0:00:57]}  Rcd8 {[%clk 0:00:31]} 24. Rfd1 {[%clk 0:00:30]}  Ng4 {[%clk 0:00:28]} 25. e4 {[%clk 0:00:20]}  Bxd4 {[%clk 0:00:16]} 26. Rxd4 {[%clk 0:00:20]}  Qe6 {[%clk 0:00:06]} 27. h3 {[%clk 0:00:14]}  Nf6 {[%clk 0:00:03]} 28. exf5 {[%clk 0:00:14]}  Qe2+ {[%clk 0:00:04]} 29. Qf2 {[%clk 0:00:10]}  Qxf2+ {[%clk 0:00:04]} 30. Kxf2 {[%clk 0:00:11]}  Rxd6 {[%clk 0:00:05]} 31. Ra4 {[%clk 0:00:08]}  Rc6 {[%clk 0:00:04]} 32. Ba3 {[%clk 0:00:06]}  Rf7 {[%clk 0:00:03]} 33. fxg6 {[%clk 0:00:07]}  hxg6 {[%clk 0:00:04]} 34. Ke3 {[%clk 0:00:07]}  Nd5+ {[%clk 0:00:04]} 35. Kd4 {[%clk 0:00:07]}  Nc3 {[%clk 0:00:04]} 36. Ra6 {[%clk 0:00:07]}  Nb5+ {[%clk 0:00:04]} 37. Kd5 {[%clk 0:00:07]}  Rcf6 {[%clk 0:00:04]} 38. Bb2 {[%clk 0:00:06]}  Rd6+ {[%clk 0:00:04]} 39. Ke5 {[%clk 0:00:06]}  Re7+ {[%clk 0:00:04]} 40. Kf4 {[%clk 0:00:07]}  Nd4 {[%clk 0:00:02]} 41. Kg5 {[%clk 0:00:04]}  Ne6+ {[%clk 0:00:02]} 42. Kf6 {[%clk 0:00:05]}  Rf7+ {[%clk 0:00:02]} 43. Ke5 {[%clk 0:00:05]}  Rc6 {[%clk 0:00:03]} 44. Ra4 {[%clk 0:00:05]}  Nc5 {[%clk 0:00:03]} 45. Kd5 {[%clk 0:00:05]}  Nxa4 {[%clk 0:00:03]} 46. bxa4 {[%clk 0:00:03]}  Rc2 {[%clk 0:00:04]} 47. Bd4 {[%clk 0:00:03]}  Rxa2 {[%clk 0:00:04]} 48. g4 {[%clk 0:00:04]}  Rxa4 {[%clk 0:00:04]} 49. Be5 {[%clk 0:00:04]}  Ra5+ {[%clk 0:00:04]} 50. Ke6 {[%clk 0:00:05]}  Rxe5+ {[%clk 0:00:05]} 51. Kxe5 {[%clk 0:00:06]}  b5 {[%clk 0:00:06]} 0-1


[Site "https://www.chess.com"]

[Event "Titled Tuesday Blitz March 07 Early 2023"]
[White "Kozak, Antoni"]
[Black "Gonzalez, Francisco Silva"]
[WhiteFideId "21832030"]
[BlackFideId "1512285"]
[WhiteElo "2470"]
[BlackElo "2074"]
[Result "0-1"]
[Round "04"]
[TimeControl "180+2"]
[Date "2023.03.07"]
[WhiteClock "0:00:02"]
[BlackClock "0:00:37"]

1. d4 {[%clk 0:02:54]}  Nf6 {[%clk 0:02:57]} 2. c4 {[%clk 0:02:39]}  e6 {[%clk 0:02:55]} 3. Nc3 {[%clk 0:02:37]}  Bb4 {[%clk 0:02:55]} 4. Nf3 {[%clk 0:02:36]}  b6 {[%clk 0:02:54]} 5. g3 {[%clk 0:02:31]}  Bxc3+ {[%clk 0:02:54]} 6. bxc3 {[%clk 0:02:30]}  Bb7 {[%clk 0:02:53]} 7. Bg2 {[%clk 0:02:30]}  d6 {[%clk 0:02:54]} 8. O-O {[%clk 0:02:31]}  Nbd7 {[%clk 0:02:54]} 9. Re1 {[%clk 0:02:26]}  O-O {[%clk 0:02:54]} 10. Bh3 {[%clk 0:02:19]}  Ne4 {[%clk 0:02:50]} 11. Qc2 {[%clk 0:02:18]}  f5 {[%clk 0:02:47]} 12. Bg2 {[%clk 0:02:08]}  Rb8 {[%clk 0:02:45]} 13. a4 {[%clk 0:01:55]}  a5 {[%clk 0:02:44]} 14. Ba3 {[%clk 0:01:54]}  Qe7 {[%clk 0:02:39]} 15. Rab1 {[%clk 0:01:51]}  Ba8 {[%clk 0:02:37]} 16. Rf1 {[%clk 0:01:38]}  Rfe8 {[%clk 0:02:31]} 17. Ne1 {[%clk 0:01:36]}  Qg5 {[%clk 0:02:28]} 18. Bc1 {[%clk 0:01:23]}  Qe7 {[%clk 0:02:23]} 19. f3 {[%clk 0:01:22]}  Nef6 {[%clk 0:02:22]} 20. Ba3 {[%clk 0:01:16]}  Qf7 {[%clk 0:02:21]} 21. Nd3 {[%clk 0:01:08]}  e5 {[%clk 0:02:17]} 22. d5 {[%clk 0:01:04]}  Bb7 {[%clk 0:02:05]} 23. Nf2 {[%clk 0:00:55]}  g6 {[%clk 0:02:02]} 24. e4 {[%clk 0:00:54]}  fxe4 {[%clk 0:01:50]} 25. fxe4 {[%clk 0:00:54]}  Qg7 {[%clk 0:01:49]} 26. Bh3 {[%clk 0:00:53]}  Ba6 {[%clk 0:01:46]} 27. Qd3 {[%clk 0:00:50]}  Nc5 {[%clk 0:01:44]} 28. Bxc5 {[%clk 0:00:46]}  bxc5 {[%clk 0:01:44]} 29. Kg2 {[%clk 0:00:42]}  h5 {[%clk 0:01:43]} 30. Be6+ {[%clk 0:00:41]}  Kh7 {[%clk 0:01:43]} 31. Nh3 {[%clk 0:00:42]}  Kh8 {[%clk 0:01:37]} 32. Ng5 {[%clk 0:00:42]}  Rf8 {[%clk 0:01:11]} 33. Rxb8 {[%clk 0:00:32]}  Rxb8 {[%clk 0:01:10]} 34. Rf2 {[%clk 0:00:29]}  Bc8 {[%clk 0:01:05]} 35. Qf1 {[%clk 0:00:21]}  Bxe6 {[%clk 0:01:04]} 36. Nxe6 {[%clk 0:00:20]}  Ng4 {[%clk 0:00:56]} 37. Nxg7 {[%clk 0:00:20]}  Ne3+ {[%clk 0:00:56]} 38. Kg1 {[%clk 0:00:20]}  Nxf1 {[%clk 0:00:56]} 39. Ne6 {[%clk 0:00:18]}  Ne3 {[%clk 0:00:56]} 40. Rf7 {[%clk 0:00:17]}  Rb1+ {[%clk 0:00:54]} 41. Kf2 {[%clk 0:00:17]}  Rf1+ {[%clk 0:00:54]} 42. Kxe3 {[%clk 0:00:16]}  Rxf7 {[%clk 0:00:54]} 43. Ke2 {[%clk 0:00:16]}  Kg8 {[%clk 0:00:52]} 44. Nd8 {[%clk 0:00:16]}  Rf8 {[%clk 0:00:48]} 45. Nc6 {[%clk 0:00:17]}  Re8 {[%clk 0:00:46]} 46. Kd3 {[%clk 0:00:17]}  Kf7 {[%clk 0:00:46]} 47. Kc2 {[%clk 0:00:18]}  Kf6 {[%clk 0:00:45]} 48. Kb3 {[%clk 0:00:18]}  Ra8 {[%clk 0:00:46]} 49. h4 {[%clk 0:00:15]}  g5 {[%clk 0:00:45]} 50. Kc2 {[%clk 0:00:16]}  gxh4 {[%clk 0:00:44]} 51. gxh4 {[%clk 0:00:16]}  Rg8 {[%clk 0:00:44]} 52. Nxa5 {[%clk 0:00:17]}  Ra8 {[%clk 0:00:44]} 53. Nb3 {[%clk 0:00:12]}  Rxa4 {[%clk 0:00:43]} 54. Nd2 {[%clk 0:00:12]}  Ra2+ {[%clk 0:00:42]} 55. Kd3 {[%clk 0:00:13]}  Ra1 {[%clk 0:00:41]} 56. Nf3 {[%clk 0:00:12]}  Rh1 {[%clk 0:00:40]} 57. Ke2 {[%clk 0:00:02]}  Ke7 {[%clk 0:00:38]} 58. Kd2 {[%clk 0:00:02]}  Kd7 {[%clk 0:00:37]} 59. Ke2 {[%clk 0:00:02]}  c6 {[%clk 0:00:37]} 0-1


[Site "https://www.chess.com"]

[Event "Titled Tuesday Blitz March 07 Early 2023"]
[White "Fiorito, Francisco"]
[Black "Postnikov, Artem"]
[WhiteFideId "180165"]
[BlackFideId "34153575"]
[WhiteElo "2341"]
[BlackElo "2243"]
[Result "1-0"]
[Round "04"]
[TimeControl "180+2"]
[Date "2023.03.07"]
[WhiteClock "0:01:11"]
[BlackClock "0:00:02"]

1. d4 {[%clk 0:03:00]}  Nf6 {[%clk 0:02:59]} 2. Nc3 {[%clk 0:03:01]}  d5 {[%clk 0:02:55]} 3. Bf4 {[%clk 0:03:00]}  c5 {[%clk 0:02:55]} 4. e3 {[%clk 0:02:57]}  cxd4 {[%clk 0:02:54]} 5. exd4 {[%clk 0:02:58]}  a6 {[%clk 0:02:54]} 6. Nf3 {[%clk 0:02:53]}  Bg4 {[%clk 0:02:50]} 7. h3 {[%clk 0:02:53]}  Bh5 {[%clk 0:02:47]} 8. g4 {[%clk 0:02:37]}  Bg6 {[%clk 0:02:46]} 9. Ne5 {[%clk 0:02:37]}  Ne4 {[%clk 0:02:02]} 10. Nxe4 {[%clk 0:02:29]}  Bxe4 {[%clk 0:02:00]} 11. f3 {[%clk 0:02:29]}  Bg6 {[%clk 0:01:59]} 12. h4 {[%clk 0:02:29]}  f6 {[%clk 0:01:59]} 13. Nxg6 {[%clk 0:02:28]}  hxg6 {[%clk 0:01:59]} 14. Bd3 {[%clk 0:02:29]}  Kf7 {[%clk 0:01:57]} 15. h5 {[%clk 0:02:20]}  g5 {[%clk 0:01:48]} 16. Bg6+ {[%clk 0:02:19]}  Kg8 {[%clk 0:01:48]} 17. Qe2 {[%clk 0:02:20]}  e5 {[%clk 0:01:24]} 18. Bg3 {[%clk 0:02:18]}  Nc6 {[%clk 0:01:11]} 19. dxe5 {[%clk 0:02:10]}  Qa5+ {[%clk 0:00:29]} 20. c3 {[%clk 0:02:08]}  fxe5 {[%clk 0:00:26]} 21. Bxe5 {[%clk 0:01:54]}  Rh6 {[%clk 0:00:26]} 22. Bg3 {[%clk 0:01:32]}  d4 {[%clk 0:00:20]} 23. O-O {[%clk 0:01:24]}  dxc3 {[%clk 0:00:19]} 24. bxc3 {[%clk 0:01:22]}  Qc5+ {[%clk 0:00:19]} 25. Bf2 {[%clk 0:01:21]}  Qxc3 {[%clk 0:00:17]} 26. Rac1 {[%clk 0:01:21]}  Qe5 {[%clk 0:00:14]} 27. Qc4+ {[%clk 0:01:19]}  Kh8 {[%clk 0:00:14]} 28. Rfe1 {[%clk 0:01:19]}  Qb2 {[%clk 0:00:09]} 29. Rc2 {[%clk 0:01:18]}  Qa3 {[%clk 0:00:08]} 30. Qf7 {[%clk 0:01:15]}  Qa4 {[%clk 0:00:06]} 31. Qxb7 {[%clk 0:01:10]}  Qxc2 {[%clk 0:00:02]} 32. Bxc2 {[%clk 0:01:11]} 1-0


[Site "https://www.chess.com"]

[Event "Titled Tuesday Blitz March 07 Early 2023"]
[White "Andreev, Konstantin"]
[Black "Prokofiev, Valentyn"]
[WhiteFideId "24239305"]
[BlackFideId "14160161"]
[WhiteElo "2106"]
[BlackElo "2260"]
[Result "1-0"]
[Round "04"]
[TimeControl "180+2"]
[Date "2023.03.07"]
[WhiteClock "0:00:03"]
[BlackClock "0:00:01"]

1. e4 {[%clk 0:03:00]}  c5 {[%clk 0:02:57]} 2. Nf3 {[%clk 0:03:01]}  d6 {[%clk 0:02:57]} 3. d4 {[%clk 0:03:01]}  cxd4 {[%clk 0:02:58]} 4. Nxd4 {[%clk 0:03:01]}  Nf6 {[%clk 0:02:59]} 5. Nc3 {[%clk 0:03:02]}  a6 {[%clk 0:02:59]} 6. h4 {[%clk 0:03:02]}  e5 {[%clk 0:02:55]} 7. Nb3 {[%clk 0:03:02]}  Be6 {[%clk 0:02:32]} 8. f4 {[%clk 0:03:01]}  exf4 {[%clk 0:02:21]} 9. Bxf4 {[%clk 0:03:02]}  Nc6 {[%clk 0:02:14]} 10. Qd2 {[%clk 0:03:00]}  Be7 {[%clk 0:02:10]} 11. O-O-O {[%clk 0:03:00]}  Ne5 {[%clk 0:02:07]} 12. Kb1 {[%clk 0:02:54]}  Rc8 {[%clk 0:02:02]} 13. Be2 {[%clk 0:02:48]}  b5 {[%clk 0:01:47]} 14. Qe3 {[%clk 0:02:47]}  Qc7 {[%clk 0:01:42]} 15. Rd2 {[%clk 0:02:37]}  O-O {[%clk 0:01:23]} 16. Nd5 {[%clk 0:02:32]}  Nxd5 {[%clk 0:01:18]} 17. exd5 {[%clk 0:02:33]}  Bd7 {[%clk 0:01:08]} 18. Nd4 {[%clk 0:02:29]}  Bf6 {[%clk 0:01:07]} 19. Bg5 {[%clk 0:02:17]}  Nc4 {[%clk 0:00:57]} 20. Bxc4 {[%clk 0:02:16]}  Bxd4 {[%clk 0:00:57]} 21. Rxd4 {[%clk 0:02:08]}  bxc4 {[%clk 0:00:57]} 22. Qc3 {[%clk 0:02:07]}  Rfe8 {[%clk 0:00:54]} 23. h5 {[%clk 0:02:04]}  Re2 {[%clk 0:00:51]} 24. h6 {[%clk 0:01:55]}  f6 {[%clk 0:00:44]} 25. Bf4 {[%clk 0:01:50]}  Bf5 {[%clk 0:00:42]} 26. Rd2 {[%clk 0:01:50]}  Rce8 {[%clk 0:00:35]} 27. a3 {[%clk 0:01:48]}  Rxd2 {[%clk 0:00:31]} 28. Bxd2 {[%clk 0:01:37]}  Re2 {[%clk 0:00:26]} 29. Re1 {[%clk 0:01:36]}  Qe7 {[%clk 0:00:19]} 30. hxg7 {[%clk 0:01:30]}  Kxg7 {[%clk 0:00:17]} 31. Rh1 {[%clk 0:01:19]}  Qe4 {[%clk 0:00:16]} 32. Kc1 {[%clk 0:00:55]}  Bg6 {[%clk 0:00:12]} 33. Rf1 {[%clk 0:00:51]}  Qe5 {[%clk 0:00:10]} 34. Qxe5 {[%clk 0:00:37]}  fxe5 {[%clk 0:00:10]} 35. g4 {[%clk 0:00:37]}  Be4 {[%clk 0:00:09]} 36. Kd1 {[%clk 0:00:36]}  Rg2 {[%clk 0:00:09]} 37. g5 {[%clk 0:00:32]}  Bxd5 {[%clk 0:00:09]} 38. Rf6 {[%clk 0:00:30]}  Be4 {[%clk 0:00:05]} 39. Rxd6 {[%clk 0:00:26]}  Bf3+ {[%clk 0:00:05]} 40. Ke1 {[%clk 0:00:26]}  e4 {[%clk 0:00:05]} 41. Rf6 {[%clk 0:00:13]}  Rg1+ {[%clk 0:00:04]} 42. Kf2 {[%clk 0:00:13]}  Rg2+ {[%clk 0:00:05]} 43. Ke1 {[%clk 0:00:09]}  Re2+ {[%clk 0:00:05]} 44. Kd1 {[%clk 0:00:09]}  Rh2+ {[%clk 0:00:03]} 45. Ke1 {[%clk 0:00:09]}  Rh1+ {[%clk 0:00:03]} 46. Kf2 {[%clk 0:00:10]}  Rh2+ {[%clk 0:00:04]} 47. Ke1 {[%clk 0:00:10]}  Re2+ {[%clk 0:00:03]} 48. Kd1 {[%clk 0:00:10]}  Kg8 {[%clk 0:00:04]} 49. Bc3 {[%clk 0:00:06]}  Rh2+ {[%clk 0:00:02]} 50. Ke1 {[%clk 0:00:06]}  Re2+ {[%clk 0:00:02]} 51. Kf1 {[%clk 0:00:06]}  Rxc2 {[%clk 0:00:03]} 52. Re6 {[%clk 0:00:03]}  h5 {[%clk 0:00:02]} 53. g6 {[%clk 0:00:03]}  Bg2+ {[%clk 0:00:01]} 54. Kg1 {[%clk 0:00:03]} 1-0


[Site "https://www.chess.com"]